[Event "Live Chess"]
[Site "Chess.com"]
[Date "2023.05.21"]
[Round "-"]
[White "fretle"]
[Black "Bot_Boy"]
[Result "1-0"]
[WhiteElo "1805"]
[BlackElo "334"]
[TimeControl "300"]
[EndTime "1:44:20 PDT"]
[Termination "fretle won on time"]

1. f4 {[%clk 0:04:57.9]} 1... b6 {[%clk 0:04:57.2]} 2. Nf3 {[%clk 0:04:57.1]}
2... Bb7 {[%clk 0:04:54.4]} 3. e3 {[%clk 0:04:56.3]} 3... d5 {[%clk 0:04:51.3]}
4. b3 {[%clk 0:04:55.5]} 4... Nf6 {[%clk 0:04:46.5]} 5. Bb2 {[%clk 0:04:54.5]}
5... Nfd7 {[%clk 0:04:41.5]} 6. Be2 {[%clk 0:04:49.2]} 6... e6 {[%clk
0:04:39.6]} 7. O-O {[%clk 0:04:47.1]} 7... Nc5 {[%clk 0:04:22.6]} 8. b4 {[%clk
0:04:31.7]} 8... Ne4 {[%clk 0:04:09.7]} 9. d3 {[%clk 0:04:30.6]} 9... Nd6 {[%clk
0:04:06]} 10. Nbd2 {[%clk 0:04:24.1]} 10... Nf5 {[%clk 0:03:52.4]} 11. Qe1
{[%clk 0:04:05.6]} 11... Bxb4 {[%clk 0:03:42.9]} 12. Bd1 {[%clk 0:03:59.8]}
12... Be7 {[%clk 0:03:36.8]} 13. g4 {[%clk 0:03:54.1]} 13... Nh4 {[%clk
0:03:30.3]} 14. g5 {[%clk 0:03:32.8]} 14... Ng6 {[%clk 0:03:01.1]} 15. Bxg7
{[%clk 0:03:25.8]} 15... Rg8 {[%clk 0:02:53.2]} 16. Bb2 {[%clk 0:03:22]} 16...
c6 {[%clk 0:02:40.6]} 17. h4 {[%clk 0:03:12.7]} 17... Nf8 {[%clk 0:02:25.2]} 18.
e4 {[%clk 0:03:00.6]} 18... Bc5+ {[%clk 0:02:10.1]} 19. Kh2 {[%clk 0:02:53]}
19... Ng6 {[%clk 0:01:53.4]} 20. Qg3 {[%clk 0:02:42.5]} 20... d4 {[%clk
0:01:35.2]} 21. Nb3 {[%clk 0:02:38.7]} 21... Bc8 {[%clk 0:01:24.4]} 22. Nbxd4
{[%clk 0:02:32.6]} 22... Bxd4 {[%clk 0:01:12.8]} 23. Bxd4 {[%clk 0:02:29.2]}
23... c5 {[%clk 0:00:57.6]} 24. Bb2 {[%clk 0:02:05.3]} 24... Qc7 {[%clk
0:00:28]} 25. Ne5 {[%clk 0:01:57.3]} 25... Nxe5 {[%clk 0:00:16.8]} 26. Bxe5
{[%clk 0:01:55.7]} 26... Qd7 {[%clk 0:00:11.9]} 27. Bh5 {[%clk 0:01:53.8]} 27...
h6 {[%clk 0:00:07.7]} 28. f5 {[%clk 0:01:41.7]} 28... exf5 {[%clk 0:00:05.8]}
29. exf5 {[%clk 0:01:39.8]} 29... Rxg5 {[%clk 0:00:04.1]} 30. hxg5 {[%clk
0:01:38.2]} 30... hxg5 {[%clk 0:00:02.3]} 31. Qxg5 {[%clk 0:01:34]} 1-0

[Event "Live Chess"]
[Site "Chess.com"]
[Date "2023.05.21"]
[Round "-"]
[White "Tiltador"]
[Black "ranvir123"]
[Result "1-0"]
[WhiteElo "796"]
[BlackElo "920"]
[TimeControl "300"]
[EndTime "1:44:25 PDT"]
[Termination "Tiltador won by resignation"]

1. e4 {[%clk 0:04:56.2]} 1... e5 {[%clk 0:04:59.3]} 2. Nf3 {[%clk 0:04:55.1]}
2... Nc6 {[%clk 0:04:58.8]} 3. Bb5 {[%clk 0:04:52.4]} 3... d6 {[%clk 0:04:54.9]}
4. Bxc6+ {[%clk 0:04:51.1]} 4... Bd7 {[%clk 0:04:54.4]} 5. Bxd7+ {[%clk
0:04:48.7]} 5... Qxd7 {[%clk 0:04:52.7]} 6. O-O {[%clk 0:04:47.1]} 6... Qg4
{[%clk 0:04:50.6]} 7. d3 {[%clk 0:04:44.2]} 7... Nf6 {[%clk 0:04:46]} 8. h3
{[%clk 0:04:36.9]} 8... Qg6 {[%clk 0:04:43.4]} 9. Nc3 {[%clk 0:04:31.9]} 9...
Nh5 {[%clk 0:04:41.8]} 10. Nd5 {[%clk 0:04:28.4]} 10... O-O-O {[%clk 0:04:38.2]}
11. a4 {[%clk 0:04:15.4]} 11... c6 {[%clk 0:04:36.7]} 12. Nc3 {[%clk 0:04:10.9]}
12... Nf4 {[%clk 0:04:35]} 13. Bxf4 {[%clk 0:03:56.7]} 13... exf4 {[%clk
0:04:32.8]} 1-0

[Event "Live Chess"]
[Site "Chess.com"]
[Date "2023.05.21"]
[Round "-"]
[White "AbilifyXL"]
[Black "FailsGambits"]
[Result "1-0"]
[WhiteElo "1948"]
[BlackElo "1335"]
[TimeControl "300"]
[EndTime "1:44:26 PDT"]
[Termination "AbilifyXL won by resignation"]

1. d4 {[%clk 0:04:59.1]} 1... d5 {[%clk 0:04:58.8]} 2. c4 {[%clk 0:04:59]} 2...
e6 {[%clk 0:04:57.6]} 3. Nc3 {[%clk 0:04:58.9]} 3... Nf6 {[%clk 0:04:57.2]} 4.
cxd5 {[%clk 0:04:57.9]} 4... Nxd5 {[%clk 0:04:53.2]} 5. Nf3 {[%clk 0:04:57.8]}
5... Bb4 {[%clk 0:04:51.7]} 6. Qc2 {[%clk 0:04:54.2]} 6... Nc6 {[%clk
0:04:43.5]} 7. e4 {[%clk 0:04:53]} 7... Nxc3 {[%clk 0:04:29.7]} 8. bxc3 {[%clk
0:04:52.9]} 8... Be7 {[%clk 0:04:28]} 9. Bd3 {[%clk 0:04:52.1]} 9... Bd7 {[%clk
0:04:06.2]} 10. O-O {[%clk 0:04:49.9]} 10... f6 {[%clk 0:03:44.7]} 11. Bf4
{[%clk 0:04:11.2]} 11... g5 {[%clk 0:03:36]} 12. Be3 {[%clk 0:04:08.9]} 12... h5
{[%clk 0:03:32.9]} 13. d5 {[%clk 0:04:03.9]} 13... exd5 {[%clk 0:03:28.9]} 14.
exd5 {[%clk 0:04:01.7]} 14... Ne5 {[%clk 0:03:26.9]} 15. Nxe5 {[%clk 0:04:00.3]}
15... fxe5 {[%clk 0:03:26.8]} 16. Bg6+ {[%clk 0:03:58.2]} 16... Kf8 {[%clk
0:03:22.8]} 17. c4 {[%clk 0:03:52.5]} 17... Bd6 {[%clk 0:03:08.4]} 18. c5 {[%clk
0:03:44.7]} 18... Be7 {[%clk 0:03:04.4]} 19. Rac1 {[%clk 0:03:41.9]} 19... Kg7
{[%clk 0:02:45]} 20. Rfd1 {[%clk 0:03:35.7]} 20... Rh6 {[%clk 0:02:42.4]} 21.
Bf5 {[%clk 0:03:29.5]} 21... Bxf5 {[%clk 0:02:34.8]} 22. Qxf5 {[%clk 0:03:28.4]}
22... Rh8 {[%clk 0:02:16.3]} 23. Qxe5+ {[%clk 0:03:17.5]} 23... Bf6 {[%clk
0:02:10]} 24. Qf5 {[%clk 0:03:15.6]} 24... Rf8 {[%clk 0:02:04.1]} 25. Qd3 {[%clk
0:03:12.3]} 25... Qd7 {[%clk 0:01:49.2]} 26. Bd4 {[%clk 0:03:03.2]} 26... Bxd4
{[%clk 0:01:40.9]} 27. Qxd4+ {[%clk 0:02:56.1]} 27... Kg6 {[%clk 0:01:38.4]} 28.
d6 {[%clk 0:02:54.5]} 28... cxd6 {[%clk 0:01:35.3]} 29. cxd6 {[%clk 0:02:53.6]}
29... Rad8 {[%clk 0:01:28.8]} 30. h3 {[%clk 0:02:51.2]} 30... Qf5 {[%clk
0:01:19.1]} 31. Qxa7 {[%clk 0:02:47.5]} 31... Ra8 {[%clk 0:01:03.5]} 32. Qd4
{[%clk 0:02:41]} 32... Rxa2 {[%clk 0:00:59.5]} 33. Qd3 {[%clk 0:02:29.6]} 33...
Qxd3 {[%clk 0:00:38.2]} 34. Rxd3 {[%clk 0:02:28.6]} 34... Raxf2 {[%clk
0:00:37.9]} 35. d7 {[%clk 0:02:26.8]} 35... Rd8 {[%clk 0:00:22.1]} 36. Kxf2
{[%clk 0:02:25.3]} 1-0

[Event "Live Chess"]
[Site "Chess.com"]
[Date "2023.05.21"]
[Round "-"]
[White "MJMykh"]
[Black "Duke_of_Bebington"]
[Result "0-1"]
[WhiteElo "1098"]
[BlackElo "1590"]
[TimeControl "300"]
[EndTime "1:44:26 PDT"]
[Termination "Duke_of_Bebington won by checkmate"]

1. e4 {[%clk 0:04:57.7]} 1... e5 {[%clk 0:04:58.5]} 2. Nf3 {[%clk 0:04:56.5]}
2... Nf6 {[%clk 0:04:57]} 3. Nc3 {[%clk 0:04:56]} 3... Nc6 {[%clk 0:04:55.3]} 4.
Bc4 {[%clk 0:04:55.4]} 4... Nxe4 {[%clk 0:04:54]} 5. Nxe4 {[%clk 0:04:53.8]}
5... d5 {[%clk 0:04:52.6]} 6. Bd3 {[%clk 0:04:53.6]} 6... dxe4 {[%clk
0:04:51.4]} 7. Bxe4 {[%clk 0:04:53.4]} 7... Bd6 {[%clk 0:04:46.8]} 8. Bxc6+
{[%clk 0:04:53]} 8... bxc6 {[%clk 0:04:45.9]} 9. O-O {[%clk 0:04:52.6]} 9... O-O
{[%clk 0:04:44.4]} 10. h3 {[%clk 0:04:52.4]} 10... c5 {[%clk 0:04:35.6]} 11. d3
{[%clk 0:04:48]} 11... h6 {[%clk 0:04:32.9]} 12. Be3 {[%clk 0:04:45.4]} 12...
Bb7 {[%clk 0:04:30.9]} 13. a3 {[%clk 0:04:43.5]} 13... Qf6 {[%clk 0:04:20.7]}
14. Nd2 {[%clk 0:04:38.3]} 14... Rfd8 {[%clk 0:04:12.9]} 15. Nc4 {[%clk
0:04:35.7]} 15... Rab8 {[%clk 0:04:08.5]} 16. Nxd6 {[%clk 0:04:34]} 16... cxd6
{[%clk 0:04:05.6]} 17. Rb1 {[%clk 0:04:33.5]} 17... Qg6 {[%clk 0:04:04.1]} 18.
f3 {[%clk 0:04:31.7]} 18... f5 {[%clk 0:03:50.2]} 19. c3 {[%clk 0:04:24.2]}
19... Ba6 {[%clk 0:03:43.3]} 20. c4 {[%clk 0:04:22.1]} 20... e4 {[%clk
0:03:28.8]} 21. fxe4 {[%clk 0:04:19.1]} 21... fxe4 {[%clk 0:03:27.3]} 22. dxe4
{[%clk 0:04:14.7]} 22... Qxe4 {[%clk 0:03:26.1]} 23. Bd2 {[%clk 0:04:04]} 23...
Bxc4 {[%clk 0:02:49.4]} 24. Rf4 {[%clk 0:03:59.8]} 24... Qe6 {[%clk 0:02:38.7]}
25. Qc2 {[%clk 0:03:51.6]} 25... Rf8 {[%clk 0:02:31]} 26. Rxc4 {[%clk
0:03:44.4]} 26... Qe2 {[%clk 0:02:17.2]} 27. b3 {[%clk 0:03:31.8]} 27... Rf2
{[%clk 0:02:13.5]} 28. Rb2 {[%clk 0:03:17.7]} 28... Rxg2+ {[%clk 0:02:11.9]} 29.
Kh1 {[%clk 0:03:16.8]} 29... Rh2+ {[%clk 0:02:11]} 30. Kg1 {[%clk 0:03:15.8]}
30... Qg2# {[%clk 0:02:10.4]} 0-1

[Event "Live Chess"]
[Site "Chess.com"]
[Date "2023.05.21"]
[Round "-"]
[White "TKDRyan"]
[Black "Larchikov"]
[Result "0-1"]
[WhiteElo "1137"]
[BlackElo "2055"]
[TimeControl "300"]
[EndTime "1:44:26 PDT"]
[Termination "Larchikov won by checkmate"]

1. e4 {[%clk 0:04:55.9]} 1... c5 {[%clk 0:04:57.2]} 2. Nf3 {[%clk 0:04:54.6]}
2... d6 {[%clk 0:04:56.1]} 3. d4 {[%clk 0:04:54.1]} 3... cxd4 {[%clk 0:04:54.4]}
4. Nxd4 {[%clk 0:04:53.5]} 4... Nf6 {[%clk 0:04:54]} 5. Nc3 {[%clk 0:04:51]}
5... a6 {[%clk 0:04:53.4]} 6. Bd3 {[%clk 0:04:49.5]} 6... e5 {[%clk 0:04:52.2]}
7. Nf3 {[%clk 0:04:48.4]} 7... Be7 {[%clk 0:04:51]} 8. O-O {[%clk 0:04:45.6]}
8... O-O {[%clk 0:04:50.5]} 9. h3 {[%clk 0:04:44.9]} 9... b5 {[%clk 0:04:47.8]}
10. Be3 {[%clk 0:04:44.3]} 10... Bb7 {[%clk 0:04:46.2]} 11. a3 {[%clk
0:04:41.8]} 11... Nbd7 {[%clk 0:04:44.9]} 12. Qd2 {[%clk 0:04:40.8]} 12... Rc8
{[%clk 0:04:42.3]} 13. Rac1 {[%clk 0:04:35.3]} 13... Nb6 {[%clk 0:04:38.5]} 14.
Bxb6 {[%clk 0:04:26.8]} 14... Qxb6 {[%clk 0:04:38.4]} 15. b4 {[%clk 0:04:24.8]}
15... Rc7 {[%clk 0:04:35.1]} 16. Qe3 {[%clk 0:04:13.3]} 16... Qxe3 {[%clk
0:04:32.8]} 17. fxe3 {[%clk 0:04:12.2]} 17... Rxc3 {[%clk 0:04:32.7]} 18. Nd2
{[%clk 0:03:56.5]} 18... Rfc8 {[%clk 0:04:30.4]} 19. Nb1 {[%clk 0:03:35.8]}
19... R3c7 {[%clk 0:04:26.4]} 20. c4 {[%clk 0:03:30.4]} 20... bxc4 {[%clk
0:04:24.6]} 21. Bxc4 {[%clk 0:03:28.9]} 21... Rxc4 {[%clk 0:04:24.2]} 22. Rxc4
{[%clk 0:03:27]} 22... Rxc4 {[%clk 0:04:24.1]} 23. Nd2 {[%clk 0:03:26.2]} 23...
Rc2 {[%clk 0:04:22.9]} 24. Nb3 {[%clk 0:03:24.3]} 24... Nxe4 {[%clk 0:04:22.3]}
25. Na5 {[%clk 0:03:22.8]} 25... Bd5 {[%clk 0:04:21.1]} 26. Rd1 {[%clk
0:03:19.1]} 26... Be6 {[%clk 0:04:18.7]} 27. Nb7 {[%clk 0:03:16]} 27... d5
{[%clk 0:04:13.7]} 28. a4 {[%clk 0:03:09.7]} 28... Bg5 {[%clk 0:04:12.3]} 29. b5
{[%clk 0:03:05.9]} 29... Bxe3+ {[%clk 0:04:10.1]} 30. Kh2 {[%clk 0:03:03.8]}
30... Bf4+ {[%clk 0:04:09]} 31. Kg1 {[%clk 0:03:00]} 31... axb5 {[%clk
0:04:07.7]} 32. axb5 {[%clk 0:02:58.5]} 32... Bxh3 {[%clk 0:03:50.7]} 33. Ra1
{[%clk 0:02:54.2]} 33... Rxg2+ {[%clk 0:03:47.8]} 34. Kh1 {[%clk 0:02:49]} 34...
Nf2# {[%clk 0:03:45.8]} 0-1

[Event "Live Chess"]
[Site "Chess.com"]
[Date "2023.05.21"]
[Round "-"]
[White "Rusty_Bridges"]
[Black "OleksiyJr1"]
[Result "1-0"]
[WhiteElo "1526"]
[BlackElo "978"]
[TimeControl "300"]
[EndTime "1:44:28 PDT"]
[Termination "Rusty_Bridges won by resignation"]

1. e4 {[%clk 0:04:56.5]} 1... c5 {[%clk 0:04:48.2]} 2. Be2 {[%clk 0:04:54.1]}
2... Nc6 {[%clk 0:04:44.4]} 3. f4 {[%clk 0:04:51.7]} 3... d6 {[%clk 0:04:44.3]}
4. Nf3 {[%clk 0:04:50]} 4... e5 {[%clk 0:04:42.9]} 5. f5 {[%clk 0:04:48.2]} 5...
f6 {[%clk 0:04:41.8]} 6. O-O {[%clk 0:04:46.2]} 6... b6 {[%clk 0:04:39.5]} 7.
Nc3 {[%clk 0:04:44.2]} 7... Bb7 {[%clk 0:04:38.5]} 8. d3 {[%clk 0:04:42]} 8...
Nge7 {[%clk 0:04:37.6]} 9. Be3 {[%clk 0:04:38]} 9... Nd4 {[%clk 0:04:35.4]} 10.
Bxd4 {[%clk 0:04:35.5]} 10... cxd4 {[%clk 0:04:35.3]} 11. Nb1 {[%clk 0:04:33.7]}
11... Nc6 {[%clk 0:04:33.6]} 12. Nbd2 {[%clk 0:04:32.7]} 12... Be7 {[%clk
0:04:16.7]} 13. c3 {[%clk 0:04:28.6]} 13... dxc3 {[%clk 0:04:14.7]} 14. bxc3
{[%clk 0:04:27]} 14... O-O {[%clk 0:04:12.5]} 15. h4 {[%clk 0:04:23.4]} 15... d5
{[%clk 0:03:59.6]} 16. g4 {[%clk 0:04:11]} 16... d4 {[%clk 0:03:56]} 17. c4
{[%clk 0:04:08.5]} 17... Bb4 {[%clk 0:03:52.8]} 18. g5 {[%clk 0:04:03.4]} 18...
Bxd2 {[%clk 0:03:51.3]} 19. Qxd2 {[%clk 0:04:01.5]} 19... Rc8 {[%clk 0:03:45]}
20. Kf2 {[%clk 0:03:57.1]} 20... Ne7 {[%clk 0:03:37.4]} 21. Rg1 {[%clk
0:03:51.4]} 21... a6 {[%clk 0:03:24.4]} 22. gxf6 {[%clk 0:03:49.2]} 22... Rxf6
{[%clk 0:03:22.7]} 23. Nxe5 {[%clk 0:03:34.9]} 23... Nc6 {[%clk 0:03:15.2]} 24.
Ng4 {[%clk 0:03:27.2]} 24... Rf7 {[%clk 0:03:03.5]} 25. Nh6+ {[%clk 0:03:23.4]}
25... Kf8 {[%clk 0:02:59.9]} 26. Nxf7 {[%clk 0:03:22.2]} 26... Kxf7 {[%clk
0:02:59.8]} 27. Qg5 {[%clk 0:03:16.1]} 27... Ne5 {[%clk 0:02:54.2]} 28. Qxg7+
{[%clk 0:03:08.7]} 28... Ke8 {[%clk 0:02:47.5]} 29. Qxe5+ {[%clk 0:03:05]} 1-0

[Event "Live Chess"]
[Site "Chess.com"]
[Date "2023.05.21"]
[Round "-"]
[White "NAZRIZ1977"]
[Black "Cimon"]
[Result "1-0"]
[WhiteElo "1988"]
[BlackElo "1841"]
[TimeControl "300"]
[EndTime "1:44:39 PDT"]
[Termination "NAZRIZ1977 won on time"]

1. c4 {[%clk 0:04:53.8]} 1... Nf6 {[%clk 0:04:56.7]} 2. g3 {[%clk 0:04:53.2]}
2... c6 {[%clk 0:04:54.2]} 3. Bg2 {[%clk 0:04:52.3]} 3... g6 {[%clk 0:04:53.1]}
4. Nf3 {[%clk 0:04:51.4]} 4... Bg7 {[%clk 0:04:52.1]} 5. O-O {[%clk 0:04:51]}
5... d6 {[%clk 0:04:51]} 6. Nc3 {[%clk 0:04:50.3]} 6... O-O {[%clk 0:04:49.5]}
7. d3 {[%clk 0:04:49.8]} 7... e5 {[%clk 0:04:46.9]} 8. Rb1 {[%clk 0:04:49.3]}
8... Bg4 {[%clk 0:04:40.9]} 9. h3 {[%clk 0:04:48]} 9... Bd7 {[%clk 0:04:37.4]}
10. b4 {[%clk 0:04:46.7]} 10... h6 {[%clk 0:04:31.8]} 11. b5 {[%clk 0:04:45.3]}
11... Qe7 {[%clk 0:04:21.8]} 12. Nd2 {[%clk 0:04:42.7]} 12... Be6 {[%clk
0:04:01.9]} 13. a4 {[%clk 0:04:40.8]} 13... d5 {[%clk 0:03:56.9]} 14. bxc6
{[%clk 0:04:37.9]} 14... bxc6 {[%clk 0:03:53.4]} 15. cxd5 {[%clk 0:04:36.8]}
15... cxd5 {[%clk 0:03:51]} 16. Nc4 {[%clk 0:04:30.4]} 16... Nc6 {[%clk
0:03:37.1]} 17. Ba3 {[%clk 0:04:26.4]} 17... Qd7 {[%clk 0:03:20.7]} 18. Bxf8
{[%clk 0:04:20.6]} 18... Rxf8 {[%clk 0:03:19.1]} 19. Nd2 {[%clk 0:04:07.9]}
19... Bxh3 {[%clk 0:03:16.8]} 20. Qb3 {[%clk 0:03:59.3]} 20... Bxg2 {[%clk
0:03:12.7]} 21. Kxg2 {[%clk 0:03:59.2]} 21... Nd4 {[%clk 0:03:06.3]} 22. Qb7
{[%clk 0:03:49.7]} 22... Qd6 {[%clk 0:02:30.3]} 23. Qxa7 {[%clk 0:03:21.9]}
23... Rc8 {[%clk 0:02:22.6]} 24. Qb6 {[%clk 0:03:10]} 24... Qxb6 {[%clk
0:02:16.7]} 25. Rxb6 {[%clk 0:03:06.5]} 25... Rxc3 {[%clk 0:02:15.2]} 26. Ra1
{[%clk 0:02:57.2]} 26... Rc7 {[%clk 0:01:58.8]} 27. a5 {[%clk 0:02:54.8]} 27...
Ra7 {[%clk 0:01:54.8]} 28. a6 {[%clk 0:02:53.7]} 28... Bf8 {[%clk 0:01:28.4]}
29. Rb7 {[%clk 0:02:53.6]} 29... Ra8 {[%clk 0:01:27]} 30. a7 {[%clk 0:02:49.3]}
30... Nc6 {[%clk 0:01:20.8]} 31. Rc7 {[%clk 0:02:48.1]} 31... Ne7 {[%clk
0:01:08.8]} 32. Nb3 {[%clk 0:02:35.6]} 32... Ne8 {[%clk 0:01:06.3]} 33. Rd7
{[%clk 0:02:28.3]} 33... Nc6 {[%clk 0:00:57.3]} 34. Rxd5 {[%clk 0:02:24]} 34...
Rxa7 {[%clk 0:00:52.9]} 35. Rxa7 {[%clk 0:02:20.7]} 35... Nxa7 {[%clk
0:00:51.5]} 36. Rxe5 {[%clk 0:02:20.6]} 36... Nd6 {[%clk 0:00:47.7]} 37. Rd5
{[%clk 0:02:11.7]} 37... Nc6 {[%clk 0:00:44.2]} 38. Na5 {[%clk 0:02:06]} 38...
Nxa5 {[%clk 0:00:41.9]} 39. Rxa5 {[%clk 0:02:05.9]} 39... Kg7 {[%clk 0:00:37]}
40. d4 {[%clk 0:01:58.9]} 40... Kf6 {[%clk 0:00:34.4]} 41. f3 {[%clk 0:01:56.2]}
41... Ke6 {[%clk 0:00:30.3]} 42. e4 {[%clk 0:01:53.7]} 42... f5 {[%clk
0:00:27.1]} 43. Ra6 {[%clk 0:01:45.6]} 43... Kf7 {[%clk 0:00:22.7]} 44. e5
{[%clk 0:01:43.8]} 44... Nc4 {[%clk 0:00:17]} 45. Rf6+ {[%clk 0:01:41.3]} 45...
Kg7 {[%clk 0:00:13.8]} 46. Ra6 {[%clk 0:01:40]} 46... Be7 {[%clk 0:00:09.6]} 47.
Ra7 {[%clk 0:01:37.8]} 47... Kf8 {[%clk 0:00:08.1]} 48. f4 {[%clk 0:01:36.4]}
48... g5 {[%clk 0:00:07.3]} 49. Kf3 {[%clk 0:01:33.8]} 49... g4+ {[%clk
0:00:05.5]} 50. Ke2 {[%clk 0:01:32.5]} 50... Nb6 {[%clk 0:00:03.6]} 51. Ra6
{[%clk 0:01:30]} 51... Nd5 {[%clk 0:00:02.3]} 52. Rxh6 {[%clk 0:01:29.9]} 52...
Nc3+ {[%clk 0:00:00.3]} 53. Kd3 {[%clk 0:01:28.8]} 1-0

[Event "Live Chess"]
[Site "Chess.com"]
[Date "2023.05.21"]
[Round "-"]
[White "JoeyCage"]
[Black "Singapourfeuj"]
[Result "1-0"]
[WhiteElo "2303"]
[BlackElo "2180"]
[TimeControl "300"]
[EndTime "1:44:45 PDT"]
[Termination "JoeyCage won by resignation"]

1. e4 {[%clk 0:04:58.2]} 1... c5 {[%clk 0:04:58.9]} 2. Nf3 {[%clk 0:04:57]} 2...
d6 {[%clk 0:04:58.1]} 3. d4 {[%clk 0:04:56.1]} 3... cxd4 {[%clk 0:04:56.5]} 4.
Nxd4 {[%clk 0:04:56]} 4... Nf6 {[%clk 0:04:55.2]} 5. Nc3 {[%clk 0:04:54.7]} 5...
a6 {[%clk 0:04:54.5]} 6. g3 {[%clk 0:04:52.4]} 6... e5 {[%clk 0:04:52.9]} 7.
Nde2 {[%clk 0:04:50.9]} 7... Be7 {[%clk 0:04:52.2]} 8. Bg2 {[%clk 0:04:49.8]}
8... Be6 {[%clk 0:04:51.5]} 9. O-O {[%clk 0:04:47.8]} 9... Nc6 {[%clk
0:04:50.8]} 10. Nd5 {[%clk 0:04:40.6]} 10... O-O {[%clk 0:04:47.3]} 11. Nxe7+
{[%clk 0:04:33]} 11... Qxe7 {[%clk 0:04:44.8]} 12. Nc3 {[%clk 0:04:32.9]} 12...
Nd4 {[%clk 0:04:43.5]} 13. Ne2 {[%clk 0:04:29.1]} 13... Nxe2+ {[%clk 0:04:41.8]}
14. Qxe2 {[%clk 0:04:27.7]} 14... Rfd8 {[%clk 0:04:41]} 15. c4 {[%clk
0:04:25.6]} 15... Rac8 {[%clk 0:04:39.7]} 16. b3 {[%clk 0:04:24]} 16... Qd7
{[%clk 0:04:35.1]} 17. Rd1 {[%clk 0:04:18.7]} 17... b5 {[%clk 0:04:32.9]} 18.
cxb5 {[%clk 0:04:11.8]} 18... Qxb5 {[%clk 0:04:31.8]} 19. Qxb5 {[%clk 0:04:08]}
19... axb5 {[%clk 0:04:30.9]} 20. Ba3 {[%clk 0:04:07.5]} 20... d5 {[%clk
0:04:29.3]} 21. Be7 {[%clk 0:04:05.9]} 21... Rd7 {[%clk 0:04:16.2]} 22. Bxf6
{[%clk 0:04:04.1]} 22... gxf6 {[%clk 0:04:15.5]} 23. exd5 {[%clk 0:04:01.3]}
23... Bg4 {[%clk 0:04:14]} 24. Rdc1 {[%clk 0:03:58.7]} 24... Rb8 {[%clk
0:04:10.5]} 25. a4 {[%clk 0:03:54.4]} 25... bxa4 {[%clk 0:04:09.3]} 26. bxa4
{[%clk 0:03:53.1]} 26... Rd6 {[%clk 0:04:08.6]} 27. a5 {[%clk 0:03:51]} 27...
Ra8 {[%clk 0:04:05.8]} 28. Rc5 {[%clk 0:03:46.3]} 28... Kg7 {[%clk 0:04:03]} 29.
h3 {[%clk 0:03:44.1]} 29... Be2 {[%clk 0:04:01.6]} 30. Be4 {[%clk 0:03:41.1]}
30... Rad8 {[%clk 0:03:53.7]} 31. Rc6 {[%clk 0:03:36.7]} 31... f5 {[%clk
0:03:50.3]} 32. Rxd6 {[%clk 0:03:31.7]} 32... Rxd6 {[%clk 0:03:49.1]} 33. Bxf5
{[%clk 0:03:30.8]} 33... Rxd5 {[%clk 0:03:47.2]} 34. g4 {[%clk 0:03:27.8]} 34...
Bf3 {[%clk 0:03:43.3]} 35. Kh2 {[%clk 0:03:24.8]} 35... Rd2 {[%clk 0:03:30.6]}
36. Kg3 {[%clk 0:03:23.1]} 36... Ba8 {[%clk 0:03:29.1]} 37. a6 {[%clk
0:03:20.3]} 37... h5 {[%clk 0:03:26.9]} 38. a7 {[%clk 0:03:15.8]} 38... hxg4
{[%clk 0:03:25.5]} 39. hxg4 {[%clk 0:03:14.2]} 39... Rc2 {[%clk 0:03:20.2]} 40.
Bxc2 {[%clk 0:03:12.3]} 1-0

[Event "Live Chess"]
[Site "Chess.com"]
[Date "2023.05.21"]
[Round "-"]
[White "OSmith06"]
[Black "ChessTWSS"]
[Result "0-1"]
[WhiteElo "1621"]
[BlackElo "1560"]
[TimeControl "300"]
[EndTime "1:44:56 PDT"]
[Termination "ChessTWSS won by resignation"]

1. e4 {[%clk 0:04:59.3]} 1... c5 {[%clk 0:04:53.7]} 2. Nf3 {[%clk 0:04:58.6]}
2... Nc6 {[%clk 0:04:49.6]} 3. d4 {[%clk 0:04:58.1]} 3... cxd4 {[%clk
0:04:45.1]} 4. Nxd4 {[%clk 0:04:58]} 4... e5 {[%clk 0:04:40.2]} 5. Nb5 {[%clk
0:04:56.5]} 5... Nf6 {[%clk 0:04:34.7]} 6. N1c3 {[%clk 0:04:52.6]} 6... d6
{[%clk 0:04:28]} 7. Bg5 {[%clk 0:04:49.1]} 7... a6 {[%clk 0:04:21.1]} 8. Na3
{[%clk 0:04:48]} 8... Be6 {[%clk 0:04:12]} 9. Bc4 {[%clk 0:04:43.2]} 9... Be7
{[%clk 0:03:53.4]} 10. Bxe6 {[%clk 0:04:39.4]} 10... fxe6 {[%clk 0:03:49]} 11.
O-O {[%clk 0:04:38.3]} 11... O-O {[%clk 0:03:43]} 12. f3 {[%clk 0:04:28.1]}
12... Qb6+ {[%clk 0:03:27.2]} 13. Kh1 {[%clk 0:04:13.6]} 13... Qxb2 {[%clk
0:03:22.8]} 14. Bxf6 {[%clk 0:03:57.6]} 14... Bxf6 {[%clk 0:03:17.4]} 15. Rb1
{[%clk 0:03:55.5]} 15... Qxa3 {[%clk 0:03:10.6]} 0-1

[Event "Live Chess"]
[Site "Chess.com"]
[Date "2023.05.21"]
[Round "-"]
[White "LiamClery2020"]
[Black "YrrriKharkiv"]
[Result "1-0"]
[WhiteElo "2026"]
[BlackElo "2055"]
[TimeControl "300"]
[EndTime "1:44:58 PDT"]
[Termination "LiamClery2020 won by resignation"]

1. e4 {[%clk 0:04:59.6]} 1... e6 {[%clk 0:04:57.6]} 2. d4 {[%clk 0:04:57.1]}
2... d5 {[%clk 0:04:56.4]} 3. Nd2 {[%clk 0:04:54.7]} 3... Nf6 {[%clk 0:04:54.4]}
4. e5 {[%clk 0:04:53.3]} 4... Nfd7 {[%clk 0:04:53.8]} 5. Ngf3 {[%clk 0:04:52.8]}
5... c5 {[%clk 0:04:53.1]} 6. c3 {[%clk 0:04:51.2]} 6... Nc6 {[%clk 0:04:51]} 7.
Bd3 {[%clk 0:04:50.4]} 7... Qb6 {[%clk 0:04:50.3]} 8. O-O {[%clk 0:04:49.2]}
8... cxd4 {[%clk 0:04:49.4]} 9. cxd4 {[%clk 0:04:49.1]} 9... Nxd4 {[%clk
0:04:48.3]} 10. Nxd4 {[%clk 0:04:49]} 10... Qxd4 {[%clk 0:04:47.2]} 11. Nf3
{[%clk 0:04:48.9]} 11... Qb6 {[%clk 0:04:46]} 12. Qc2 {[%clk 0:04:46.5]} 12...
h6 {[%clk 0:04:39]} 13. Be3 {[%clk 0:04:43.8]} 13... Bc5 {[%clk 0:04:29.6]} 14.
Bxc5 {[%clk 0:04:36.1]} 14... Qxc5 {[%clk 0:04:24.6]} 15. Qb3 {[%clk 0:04:33.9]}
15... Qb6 {[%clk 0:04:22.7]} 16. Qc2 {[%clk 0:04:32.9]} 16... O-O {[%clk
0:04:20.1]} 17. Rac1 {[%clk 0:04:29.3]} 17... Qb4 {[%clk 0:04:10.6]} 18. a3
{[%clk 0:04:27.5]} 18... Qf4 {[%clk 0:04:05.7]} 19. Qe2 {[%clk 0:04:21.9]} 19...
f6 {[%clk 0:03:56.4]} 20. exf6 {[%clk 0:04:17.6]} 20... Nxf6 {[%clk 0:03:47.6]}
21. Rxc8 {[%clk 0:04:14.1]} 21... Raxc8 {[%clk 0:03:44.2]} 22. Qxe6+ {[%clk
0:04:12.7]} 22... Kh8 {[%clk 0:03:42.9]} 23. Ne5 {[%clk 0:04:12.1]} 23... Ne4
{[%clk 0:03:02.3]} 24. Ng6+ {[%clk 0:04:10.1]} 1-0